[Event "Titled Tuesday Blitz February 07 Late 2023"]
[White "Makridis, Dimitrios"]
[Black "Kamsky, Gata"]
[WhiteFideId "25864475"]
[BlackFideId "2000024"]
[WhiteElo "2356"]
[BlackElo "2665"]
[Result "1-0"]
[Round "07"]
[TimeControl "180+2"]
[Date "2023.02.07"]
[WhiteClock "0:00:22"]
[BlackClock "0:00:02"]

1. e4 {[%clk 0:02:59]}  g6 {[%clk 0:02:57]} 2. d4 {[%clk 0:02:56]}  Bg7 {[%clk 0:02:55]} 3. Nc3 {[%clk 0:02:53]}  d6 {[%clk 0:02:55]} 4. f4 {[%clk 0:02:53]}  Nd7 {[%clk 0:02:44]} 5. Nf3 {[%clk 0:02:53]}  e6 {[%clk 0:02:40]} 6. Bc4 {[%clk 0:02:49]}  Ngf6 {[%clk 0:02:21]} 7. Bb3 {[%clk 0:02:40]}  O-O {[%clk 0:02:09]} 8. O-O {[%clk 0:02:39]}  Nb6 {[%clk 0:01:59]} 9. Qe1 {[%clk 0:02:33]}  a5 {[%clk 0:01:56]} 10. a4 {[%clk 0:02:33]}  Bd7 {[%clk 0:01:55]} 11. Kh1 {[%clk 0:02:30]}  Bc6 {[%clk 0:01:51]} 12. f5 {[%clk 0:02:15]}  exf5 {[%clk 0:01:48]} 13. exf5 {[%clk 0:02:13]}  Re8 {[%clk 0:01:15]} 14. Qh4 {[%clk 0:02:12]}  Bxf3 {[%clk 0:01:15]} 15. gxf3 {[%clk 0:02:10]}  d5 {[%clk 0:01:12]} 16. Bg5 {[%clk 0:02:08]}  c6 {[%clk 0:01:11]} 17. Rg1 {[%clk 0:02:04]}  Qd6 {[%clk 0:01:09]} 18. fxg6 {[%clk 0:02:02]}  fxg6 {[%clk 0:01:08]} 19. Ne4 {[%clk 0:01:59]}  Nxe4 {[%clk 0:01:06]} 20. fxe4 {[%clk 0:02:00]}  Nc4 {[%clk 0:00:59]} 21. e5 {[%clk 0:01:58]}  Qe6 {[%clk 0:00:56]} 22. c3 {[%clk 0:01:52]}  Rf8 {[%clk 0:00:53]} 23. Bd1 {[%clk 0:01:50]}  Qf5 {[%clk 0:00:47]} 24. Bg4 {[%clk 0:01:50]}  Qe4+ {[%clk 0:00:47]} 25. Rg2 {[%clk 0:01:51]}  Rae8 {[%clk 0:00:25]} 26. Bd7 {[%clk 0:01:48]}  Qxh4 {[%clk 0:00:24]} 27. Bxh4 {[%clk 0:01:49]}  Ra8 {[%clk 0:00:20]} 28. e6 {[%clk 0:01:48]}  Nb6 {[%clk 0:00:20]} 29. e7 {[%clk 0:01:37]}  Nxd7 {[%clk 0:00:20]} 30. exf8=Q+ {[%clk 0:01:37]}  Rxf8 {[%clk 0:00:20]} 31. Rf2 {[%clk 0:01:36]}  Re8 {[%clk 0:00:19]} 32. Kg1 {[%clk 0:01:33]}  Nb6 {[%clk 0:00:18]} 33. b3 {[%clk 0:01:31]}  Nc8 {[%clk 0:00:18]} 34. Rff1 {[%clk 0:01:29]}  Nd6 {[%clk 0:00:18]} 35. Rae1 {[%clk 0:01:24]}  Ne4 {[%clk 0:00:18]} 36. Kg2 {[%clk 0:01:22]}  Ra8 {[%clk 0:00:17]} 37. Rf3 {[%clk 0:01:19]}  h5 {[%clk 0:00:16]} 38. c4 {[%clk 0:01:10]}  Re8 {[%clk 0:00:15]} 39. cxd5 {[%clk 0:01:09]}  cxd5 {[%clk 0:00:15]} 40. Rc3 {[%clk 0:01:07]}  Re6 {[%clk 0:00:11]} 41. Rc8+ {[%clk 0:01:07]}  Kh7 {[%clk 0:00:12]} 42. Rc7 {[%clk 0:01:07]}  Rb6 {[%clk 0:00:11]} 43. Bg3 {[%clk 0:01:07]}  Kh6 {[%clk 0:00:09]} 44. Bf4+ {[%clk 0:01:01]}  g5 {[%clk 0:00:08]} 45. Be5 {[%clk 0:01:01]}  Bxe5 {[%clk 0:00:06]} 46. dxe5 {[%clk 0:01:02]}  Kg6 {[%clk 0:00:05]} 47. Rf1 {[%clk 0:01:01]}  g4 {[%clk 0:00:05]} 48. Rd7 {[%clk 0:00:56]}  Rxb3 {[%clk 0:00:03]} 49. Rxd5 {[%clk 0:00:55]}  Rb2+ {[%clk 0:00:03]} 50. Kh1 {[%clk 0:00:45]}  g3 {[%clk 0:00:02]} 51. e6 {[%clk 0:00:20]}  g2+ {[%clk 0:00:02]} 52. Kg1 {[%clk 0:00:20]}  gxf1=Q+ {[%clk 0:00:03]} 53. Kxf1 {[%clk 0:00:21]}  Rb1+ {[%clk 0:00:03]} 54. Kg2 {[%clk 0:00:20]}  Rb2+ {[%clk 0:00:03]} 55. Kf3 {[%clk 0:00:21]}  Nf6 {[%clk 0:00:02]} 56. Rxa5 {[%clk 0:00:20]}  Rb3+ {[%clk 0:00:02]} 57. Kf4 {[%clk 0:00:19]}  Rb4+ {[%clk 0:00:03]} 58. Ke5 {[%clk 0:00:20]}  Re4+ {[%clk 0:00:03]} 59. Kd6 {[%clk 0:00:20]}  Re2 {[%clk 0:00:03]} 60. h4 {[%clk 0:00:20]}  Ne4+ {[%clk 0:00:03]} 61. Ke7 {[%clk 0:00:20]}  Nf6 {[%clk 0:00:02]} 62. Rg5+ {[%clk 0:00:20]}  Kh6 {[%clk 0:00:02]} 63. Kxf6 {[%clk 0:00:21]}  Rf2+ {[%clk 0:00:02]} 64. Rf5 {[%clk 0:00:22]}  Re2 {[%clk 0:00:02]} 65. e7 {[%clk 0:00:22]} 1-0


[Site "https://www.chess.com"]

[Event "Titled Tuesday Blitz February 07 Late 2023"]
[White "Makhnev, Denis"]
[Black "Javakhadze, Zurab"]
[WhiteFideId "13707647"]
[BlackFideId "13603647"]
[WhiteElo "2483"]
[BlackElo "2459"]
[Result "1-0"]
[Round "07"]
[TimeControl "180+2"]
[Date "2023.02.07"]
[WhiteClock "0:01:37"]
[BlackClock "0:01:12"]

1. d4 {[%clk 0:03:00]}  d5 {[%clk 0:02:59]} 2. c4 {[%clk 0:03:01]}  e6 {[%clk 0:02:59]} 3. Nf3 {[%clk 0:03:01]}  Nf6 {[%clk 0:02:58]} 4. Nc3 {[%clk 0:03:02]}  Nbd7 {[%clk 0:02:53]} 5. Bf4 {[%clk 0:03:00]}  Be7 {[%clk 0:02:51]} 6. e3 {[%clk 0:03:00]}  O-O {[%clk 0:02:51]} 7. c5 {[%clk 0:03:00]}  c6 {[%clk 0:02:49]} 8. h3 {[%clk 0:02:56]}  b6 {[%clk 0:02:41]} 9. b4 {[%clk 0:02:56]}  a5 {[%clk 0:02:40]} 10. a3 {[%clk 0:02:57]}  Ne4 {[%clk 0:02:33]} 11. Nxe4 {[%clk 0:02:26]}  dxe4 {[%clk 0:02:33]} 12. Ne5 {[%clk 0:02:26]}  Nxe5 {[%clk 0:01:52]} 13. Bxe5 {[%clk 0:02:27]}  Ba6 {[%clk 0:01:46]} 14. Bxa6 {[%clk 0:02:13]}  Rxa6 {[%clk 0:01:46]} 15. Qg4 {[%clk 0:01:40]}  f6 {[%clk 0:01:28]} 16. Qxe6+ {[%clk 0:01:40]}  Kh8 {[%clk 0:01:28]} 17. b5 {[%clk 0:01:40]}  cxb5 {[%clk 0:01:25]} 18. Bg3 {[%clk 0:01:40]}  Qc8 {[%clk 0:01:12]} 19. Qxe7 {[%clk 0:01:37]} 1-0


[Site "https://www.chess.com"]

[Event "Titled Tuesday Blitz February 07 Late 2023"]
[White "Darini, Pouria"]
[Black "Baskakov, Egor"]
[WhiteFideId "12502200"]
[BlackFideId "24197866"]
[WhiteElo "2401"]
[BlackElo "2215"]
[Result "1/2-1/2"]
[Round "07"]
[TimeControl "180+2"]
[Date "2023.02.07"]
[WhiteClock "0:00:32"]
[BlackClock "0:02:16"]

1. e4 {[%clk 0:03:00]}  c5 {[%clk 0:03:00]} 2. Nf3 {[%clk 0:03:01]}  Nf6 {[%clk 0:03:00]} 3. e5 {[%clk 0:03:01]}  Nd5 {[%clk 0:03:01]} 4. Nc3 {[%clk 0:03:02]}  e6 {[%clk 0:03:01]} 5. g3 {[%clk 0:03:01]}  Nc6 {[%clk 0:03:01]} 6. Bg2 {[%clk 0:03:02]}  d6 {[%clk 0:03:02]} 7. exd6 {[%clk 0:03:02]}  Bxd6 {[%clk 0:03:03]} 8. O-O {[%clk 0:03:03]}  O-O {[%clk 0:03:03]} 9. d3 {[%clk 0:03:02]}  Nxc3 {[%clk 0:03:02]} 10. bxc3 {[%clk 0:03:02]}  b6 {[%clk 0:03:00]} 11. a4 {[%clk 0:03:02]}  Bb7 {[%clk 0:03:00]} 12. Ng5 {[%clk 0:03:02]}  h6 {[%clk 0:02:58]} 13. Ne4 {[%clk 0:03:02]}  Be7 {[%clk 0:02:58]} 14. Rb1 {[%clk 0:03:02]}  Qc7 {[%clk 0:02:56]} 15. Bf4 {[%clk 0:02:59]}  e5 {[%clk 0:02:56]} 16. Bc1 {[%clk 0:02:59]}  Rad8 {[%clk 0:02:55]} 17. Qe2 {[%clk 0:02:30]}  f5 {[%clk 0:02:52]} 18. Nd2 {[%clk 0:02:30]}  Bf6 {[%clk 0:02:53]} 19. Nc4 {[%clk 0:02:21]}  Rfe8 {[%clk 0:02:51]} 20. Qh5 {[%clk 0:02:12]}  Ne7 {[%clk 0:02:45]} 21. Bxb7 {[%clk 0:02:12]}  Qxb7 {[%clk 0:02:45]} 22. Nd6 {[%clk 0:02:12]}  Rxd6 {[%clk 0:02:41]} 23. Qxe8+ {[%clk 0:02:13]}  Kh7 {[%clk 0:02:41]} 24. a5 {[%clk 0:01:31]}  Qf3 {[%clk 0:02:37]} 25. axb6 {[%clk 0:01:31]}  axb6 {[%clk 0:02:37]} 26. Qb8 {[%clk 0:01:28]}  Ng6 {[%clk 0:02:17]} 27. Qxd6 {[%clk 0:00:28]}  Nh4 {[%clk 0:02:15]} 28. gxh4 {[%clk 0:00:29]}  Qg4+ {[%clk 0:02:14]} 29. Kh1 {[%clk 0:00:30]}  Qf3+ {[%clk 0:02:15]} 30. Kg1 {[%clk 0:00:30]}  Qg4+ {[%clk 0:02:16]} 31. Kh1 {[%clk 0:00:31]}  Qf3+ {[%clk 0:02:16]} 32. Kg1 {[%clk 0:00:32]} 1/2-1/2


[Site "https://www.chess.com"]

[Event "Titled Tuesday Blitz February 07 Late 2023"]
[White "Grigorov, Grigor"]
[Black "Makarian, Rudik"]
[WhiteFideId "2907313"]
[BlackFideId "44105681"]
[WhiteElo "2510"]
[BlackElo "2545"]
[Result "1-0"]
[Round "07"]
[TimeControl "180+2"]
[Date "2023.02.07"]
[WhiteClock "0:00:09"]
[BlackClock "0:00:02"]

1. d4 {[%clk 0:03:00]}  Nf6 {[%clk 0:03:00]} 2. Nf3 {[%clk 0:03:01]}  c5 {[%clk 0:03:00]} 3. d5 {[%clk 0:03:00]}  b5 {[%clk 0:03:00]} 4. Bg5 {[%clk 0:02:59]}  g6 {[%clk 0:03:00]} 5. Bxf6 {[%clk 0:02:58]}  exf6 {[%clk 0:03:01]} 6. e4 {[%clk 0:02:53]}  b4 {[%clk 0:03:02]} 7. Bd3 {[%clk 0:02:48]}  Bg7 {[%clk 0:03:02]} 8. Nbd2 {[%clk 0:02:47]}  O-O {[%clk 0:03:02]} 9. O-O {[%clk 0:02:47]}  d6 {[%clk 0:03:02]} 10. Nc4 {[%clk 0:02:45]}  Qc7 {[%clk 0:03:02]} 11. h3 {[%clk 0:02:43]}  Nd7 {[%clk 0:03:02]} 12. a3 {[%clk 0:02:39]}  a5 {[%clk 0:03:01]} 13. axb4 {[%clk 0:02:37]}  cxb4 {[%clk 0:03:02]} 14. Nd4 {[%clk 0:02:34]}  f5 {[%clk 0:02:35]} 15. Nb5 {[%clk 0:02:33]}  Qc5 {[%clk 0:02:08]} 16. Nbxd6 {[%clk 0:02:32]}  fxe4 {[%clk 0:02:07]} 17. Bxe4 {[%clk 0:02:04]}  Ne5 {[%clk 0:01:57]} 18. Nxe5 {[%clk 0:01:54]}  Bxe5 {[%clk 0:01:43]} 19. Nxc8 {[%clk 0:01:51]}  Bxb2 {[%clk 0:01:37]} 20. Ra2 {[%clk 0:01:12]}  Bc3 {[%clk 0:01:36]} 21. d6 {[%clk 0:00:55]}  Raxc8 {[%clk 0:01:34]} 22. d7 {[%clk 0:00:55]}  Rcd8 {[%clk 0:01:21]} 23. Qd3 {[%clk 0:00:55]}  Kg7 {[%clk 0:01:14]} 24. Rd1 {[%clk 0:00:55]}  f5 {[%clk 0:01:13]} 25. Bb7 {[%clk 0:00:53]}  Rf7 {[%clk 0:01:04]} 26. Bc8 {[%clk 0:00:52]}  Re7 {[%clk 0:00:42]} 27. g3 {[%clk 0:00:51]}  h5 {[%clk 0:00:34]} 28. Qd5 {[%clk 0:00:43]}  Qxd5 {[%clk 0:00:16]} 29. Rxd5 {[%clk 0:00:43]}  Re2 {[%clk 0:00:13]} 30. Raxa5 {[%clk 0:00:36]}  b3 {[%clk 0:00:10]} 31. cxb3 {[%clk 0:00:35]}  Bxa5 {[%clk 0:00:10]} 32. Rxa5 {[%clk 0:00:35]}  Rb2 {[%clk 0:00:10]} 33. Rb5 {[%clk 0:00:34]}  Kf6 {[%clk 0:00:10]} 34. h4 {[%clk 0:00:32]}  Ke7 {[%clk 0:00:09]} 35. Rb6 {[%clk 0:00:31]}  Rg8 {[%clk 0:00:07]} 36. Kg2 {[%clk 0:00:28]}  Kd8 {[%clk 0:00:06]} 37. Kf3 {[%clk 0:00:24]}  Rc2 {[%clk 0:00:04]} 38. b4 {[%clk 0:00:19]}  Kc7 {[%clk 0:00:02]} 39. Re6 {[%clk 0:00:14]}  Kd8 {[%clk 0:00:03]} 40. b5 {[%clk 0:00:14]}  Rb2 {[%clk 0:00:02]} 41. b6 {[%clk 0:00:14]}  g5 {[%clk 0:00:02]} 42. hxg5 {[%clk 0:00:13]}  Rb4 {[%clk 0:00:03]} 43. Ke3 {[%clk 0:00:10]}  h4 {[%clk 0:00:02]} 44. gxh4 {[%clk 0:00:10]}  Rxh4 {[%clk 0:00:03]} 45. f4 {[%clk 0:00:10]}  Rh3+ {[%clk 0:00:02]} 46. Kd4 {[%clk 0:00:10]}  Rb3 {[%clk 0:00:03]} 47. b7 {[%clk 0:00:10]}  Rf8 {[%clk 0:00:02]} 48. g6 {[%clk 0:00:09]} 1-0


[Site "https://www.chess.com"]

[Event "Titled Tuesday Blitz February 07 Late 2023"]
[White "Melkumyan, Hrant"]
[Black "Fiorito, Joaquin"]
[WhiteFideId "13302485"]
[BlackFideId "180173"]
[WhiteElo "2645"]
[BlackElo "2405"]
[Result "1-0"]
[Round "07"]
[TimeControl "180+2"]
[Date "2023.02.07"]
[WhiteClock "0:00:05"]
[BlackClock "0:00:05"]

1. d4 {[%clk 0:03:00]}  Nf6 {[%clk 0:02:59]} 2. c4 {[%clk 0:03:01]}  e6 {[%clk 0:03:00]} 3. Bf4 {[%clk 0:03:01]}  d5 {[%clk 0:02:57]} 4. e3 {[%clk 0:03:01]}  c6 {[%clk 0:02:53]} 5. Nc3 {[%clk 0:03:01]}  Nbd7 {[%clk 0:02:52]} 6. Nf3 {[%clk 0:03:01]}  Be7 {[%clk 0:02:50]} 7. h3 {[%clk 0:03:00]}  O-O {[%clk 0:02:51]} 8. Rc1 {[%clk 0:02:59]}  h6 {[%clk 0:02:49]} 9. a3 {[%clk 0:02:58]}  a6 {[%clk 0:02:39]} 10. c5 {[%clk 0:02:49]}  Ne8 {[%clk 0:02:20]} 11. b4 {[%clk 0:02:48]}  Nc7 {[%clk 0:02:19]} 12. a4 {[%clk 0:02:37]}  Re8 {[%clk 0:02:19]} 13. Bd3 {[%clk 0:02:35]}  Bf6 {[%clk 0:02:17]} 14. Ne5 {[%clk 0:02:32]}  Nxe5 {[%clk 0:01:57]} 15. dxe5 {[%clk 0:02:31]}  Be7 {[%clk 0:01:57]} 16. Ne2 {[%clk 0:02:28]}  a5 {[%clk 0:01:48]} 17. b5 {[%clk 0:02:27]}  Bd7 {[%clk 0:01:48]} 18. Nd4 {[%clk 0:02:27]}  f5 {[%clk 0:01:23]} 19. O-O {[%clk 0:02:21]}  Rf8 {[%clk 0:01:15]} 20. Qb3 {[%clk 0:02:19]}  Qe8 {[%clk 0:01:08]} 21. Rc2 {[%clk 0:02:12]}  Bd8 {[%clk 0:01:01]} 22. Rb1 {[%clk 0:02:10]}  g5 {[%clk 0:01:01]} 23. Bh2 {[%clk 0:02:09]}  h5 {[%clk 0:01:01]} 24. Rcb2 {[%clk 0:02:03]}  Kh8 {[%clk 0:01:01]} 25. Qd1 {[%clk 0:02:00]}  Be7 {[%clk 0:00:50]} 26. Qc1 {[%clk 0:01:59]}  Bd8 {[%clk 0:00:49]} 27. bxc6 {[%clk 0:01:58]}  bxc6 {[%clk 0:00:50]} 28. Rb8 {[%clk 0:01:54]}  Rxb8 {[%clk 0:00:48]} 29. Rxb8 {[%clk 0:01:55]}  Qf7 {[%clk 0:00:47]} 30. Qc3 {[%clk 0:01:48]}  h4 {[%clk 0:00:44]} 31. Qxa5 {[%clk 0:01:38]}  g4 {[%clk 0:00:44]} 32. Rxd8 {[%clk 0:01:35]}  Rxd8 {[%clk 0:00:42]} 33. Qxc7 {[%clk 0:01:35]}  Rc8 {[%clk 0:00:42]} 34. Qb7 {[%clk 0:01:30]}  gxh3 {[%clk 0:00:41]} 35. gxh3 {[%clk 0:01:26]}  Rg8+ {[%clk 0:00:41]} 36. Kh1 {[%clk 0:01:27]}  Qh5 {[%clk 0:00:41]} 37. Qb1 {[%clk 0:01:21]}  Qg5 {[%clk 0:00:41]} 38. Bf1 {[%clk 0:01:16]}  Qe7 {[%clk 0:00:39]} 39. Qc1 {[%clk 0:01:08]}  Qg7 {[%clk 0:00:32]} 40. a5 {[%clk 0:01:07]}  Bc8 {[%clk 0:00:32]} 41. Qd1 {[%clk 0:01:02]}  Qg6 {[%clk 0:00:32]} 42. Qf3 {[%clk 0:00:59]}  Rg7 {[%clk 0:00:29]} 43. Be2 {[%clk 0:00:51]}  Kg8 {[%clk 0:00:27]} 44. a6 {[%clk 0:00:45]}  Qe8 {[%clk 0:00:22]} 45. Qh5 {[%clk 0:00:39]}  Qd8 {[%clk 0:00:22]} 46. Bf4 {[%clk 0:00:29]}  Qa5 {[%clk 0:00:21]} 47. Qe8+ {[%clk 0:00:26]}  Kh7 {[%clk 0:00:21]} 48. Qh5+ {[%clk 0:00:27]}  Kg8 {[%clk 0:00:21]} 49. Nf3 {[%clk 0:00:22]}  Bxa6 {[%clk 0:00:18]} 50. Bxa6 {[%clk 0:00:06]}  Qxa6 {[%clk 0:00:19]} 51. Qe8+ {[%clk 0:00:06]}  Kh7 {[%clk 0:00:20]} 52. Qh5+ {[%clk 0:00:07]}  Kg8 {[%clk 0:00:20]} 53. Ng1 {[%clk 0:00:02]}  Qf1 {[%clk 0:00:19]} 54. Bg5 {[%clk 0:00:01]}  Qxf2 {[%clk 0:00:18]} 55. Qe8+ {[%clk 0:00:02]}  Kh7 {[%clk 0:00:18]} 56. Qh5+ {[%clk 0:00:03]}  Kg8 {[%clk 0:00:19]} 57. Qxh4 {[%clk 0:00:04]}  Qf1 {[%clk 0:00:12]} 58. Qg3 {[%clk 0:00:03]}  Qd3 {[%clk 0:00:08]} 59. h4 {[%clk 0:00:04]}  d4 {[%clk 0:00:08]} 60. Kh2 {[%clk 0:00:02]}  Qe4 {[%clk 0:00:09]} 61. exd4 {[%clk 0:00:01]}  Qxd4 {[%clk 0:00:09]} 62. Nh3 {[%clk 0:00:02]}  Ra7 {[%clk 0:00:08]} 63. Nf4 {[%clk 0:00:02]}  Ra2+ {[%clk 0:00:07]} 64. Ng2 {[%clk 0:00:03]}  Kf7 {[%clk 0:00:07]} 65. h5 {[%clk 0:00:03]}  Ra8 {[%clk 0:00:06]} 66. Bf6 {[%clk 0:00:03]}  Rg8 {[%clk 0:00:06]} 67. Bg5 {[%clk 0:00:03]}  Rh8 {[%clk 0:00:05]} 68. h6 {[%clk 0:00:04]}  Rg8 {[%clk 0:00:06]} 69. Nf4 {[%clk 0:00:04]}  Qxe5 {[%clk 0:00:04]} 70. Nh3 {[%clk 0:00:04]}  Qxg3+ {[%clk 0:00:04]} 71. Kxg3 {[%clk 0:00:05]}  Kg6 {[%clk 0:00:05]} 72. Kf4 {[%clk 0:00:02]}  Re8 {[%clk 0:00:05]} 73. Ke5 {[%clk 0:00:02]}  Rd8 {[%clk 0:00:04]} 74. Kxe6 {[%clk 0:00:02]}  Rd1 {[%clk 0:00:02]} 75. Bf4 {[%clk 0:00:02]}  Rh1 {[%clk 0:00:02]} 76. Ng5 {[%clk 0:00:01]}  Rxh6 {[%clk 0:00:02]} 77. Nf7 {[%clk 0:00:01]}  Rh7 {[%clk 0:00:01]} 78. Ne5+ {[%clk 0:00:01]}  Kh5 {[%clk 0:00:02]} 79. Nxc6 {[%clk 0:00:02]}  Kg4 {[%clk 0:00:02]} 80. Bd6 {[%clk 0:00:03]}  Rh6+ {[%clk 0:00:02]} 81. Kd5 {[%clk 0:00:03]}  f4 {[%clk 0:00:03]} 82. Ne5+ {[%clk 0:00:04]}  Kg5 {[%clk 0:00:02]} 83. Nf7+ {[%clk 0:00:03]}  Kg6 {[%clk 0:00:03]} 84. Nxh6 {[%clk 0:00:04]}  f3 {[%clk 0:00:04]} 85. Bg3 {[%clk 0:00:04]}  f2 {[%clk 0:00:05]} 86. Bxf2 {[%clk 0:00:05]} 1-0


[Site "https://www.chess.com"]

[Event "Titled Tuesday Blitz February 07 Late 2023"]
[White "Perske, Thore"]
[Black "Bacrot, Etienne"]
[WhiteFideId "12902195"]
[BlackFideId "605506"]
[WhiteElo "2448"]
[BlackElo "2667"]
[Result "1-0"]
[Round "07"]
[TimeControl "180+2"]
[Date "2023.02.07"]
[WhiteClock "0:00:05"]
[BlackClock "0:00:04"]

1. e4 {[%clk 0:03:00]}  c5 {[%clk 0:02:57]} 2. Nf3 {[%clk 0:03:00]}  d6 {[%clk 0:02:57]} 3. g3 {[%clk 0:03:01]}  Nf6 {[%clk 0:02:57]} 4. d3 {[%clk 0:03:01]}  g6 {[%clk 0:02:57]} 5. Bg2 {[%clk 0:03:02]}  Bg7 {[%clk 0:02:57]} 6. O-O {[%clk 0:03:02]}  O-O {[%clk 0:02:58]} 7. Nc3 {[%clk 0:03:03]}  Nc6 {[%clk 0:02:58]} 8. h3 {[%clk 0:03:03]}  Rb8 {[%clk 0:02:57]} 9. a4 {[%clk 0:03:04]}  a6 {[%clk 0:02:57]} 10. Be3 {[%clk 0:03:04]}  b5 {[%clk 0:02:56]} 11. axb5 {[%clk 0:03:05]}  axb5 {[%clk 0:02:57]} 12. Qd2 {[%clk 0:03:06]}  b4 {[%clk 0:02:57]} 13. Nd1 {[%clk 0:03:06]}  c4 {[%clk 0:02:40]} 14. dxc4 {[%clk 0:02:47]}  Nxe4 {[%clk 0:02:40]} 15. Qd5 {[%clk 0:02:36]}  Nf6 {[%clk 0:01:55]} 16. Qxc6 {[%clk 0:02:29]}  Bb7 {[%clk 0:01:55]} 17. Qb6 {[%clk 0:02:12]}  Qxb6 {[%clk 0:01:52]} 18. Bxb6 {[%clk 0:02:12]}  Bxf3 {[%clk 0:01:53]} 19. Bxf3 {[%clk 0:02:09]}  Rxb6 {[%clk 0:01:53]} 20. Ra7 {[%clk 0:02:06]}  e6 {[%clk 0:01:48]} 21. Ne3 {[%clk 0:02:04]}  Rd8 {[%clk 0:01:42]} 22. Rd1 {[%clk 0:02:01]}  Nd7 {[%clk 0:01:42]} 23. b3 {[%clk 0:01:57]}  Nc5 {[%clk 0:01:33]} 24. h4 {[%clk 0:01:56]}  h5 {[%clk 0:01:31]} 25. Kg2 {[%clk 0:01:56]}  Bf6 {[%clk 0:01:29]} 26. Nf1 {[%clk 0:01:52]}  Bc3 {[%clk 0:01:26]} 27. Ne3 {[%clk 0:01:49]}  Kg7 {[%clk 0:01:25]} 28. Kf1 {[%clk 0:01:44]}  Ra6 {[%clk 0:01:12]} 29. Rxa6 {[%clk 0:01:40]}  Nxa6 {[%clk 0:01:13]} 30. Ng2 {[%clk 0:01:37]}  f5 {[%clk 0:00:58]} 31. Nf4 {[%clk 0:01:35]}  Kf6 {[%clk 0:00:58]} 32. Ne2 {[%clk 0:01:14]}  Be5 {[%clk 0:00:54]} 33. Nc1 {[%clk 0:01:09]}  Bc3 {[%clk 0:00:51]} 34. Ne2 {[%clk 0:01:09]}  Bb2 {[%clk 0:00:51]} 35. Nf4 {[%clk 0:01:09]}  Be5 {[%clk 0:00:37]} 36. Nd3 {[%clk 0:01:06]}  Bc3 {[%clk 0:00:29]} 37. Nf4 {[%clk 0:01:06]}  Nc5 {[%clk 0:00:26]} 38. Nd3 {[%clk 0:01:04]}  Ne4 {[%clk 0:00:22]} 39. Bxe4 {[%clk 0:00:46]}  fxe4 {[%clk 0:00:23]} 40. Nf4 {[%clk 0:00:46]}  Be5 {[%clk 0:00:20]} 41. Ng2 {[%clk 0:00:45]}  d5 {[%clk 0:00:19]} 42. cxd5 {[%clk 0:00:39]}  exd5 {[%clk 0:00:20]} 43. Ne3 {[%clk 0:00:40]}  Ke6 {[%clk 0:00:20]} 44. Ke2 {[%clk 0:00:38]}  Bc3 {[%clk 0:00:21]} 45. Ng2 {[%clk 0:00:20]}  Be5 {[%clk 0:00:17]} 46. Ne3 {[%clk 0:00:20]}  d4 {[%clk 0:00:17]} 47. Nc4 {[%clk 0:00:20]}  Bf6 {[%clk 0:00:17]} 48. f3 {[%clk 0:00:18]}  exf3+ {[%clk 0:00:15]} 49. Kxf3 {[%clk 0:00:19]}  Ra8 {[%clk 0:00:15]} 50. Ke4 {[%clk 0:00:19]}  Re8 {[%clk 0:00:13]} 51. Rf1 {[%clk 0:00:15]}  Bg7 {[%clk 0:00:13]} 52. Kd3 {[%clk 0:00:14]}  Ra8 {[%clk 0:00:09]} 53. Re1+ {[%clk 0:00:14]}  Kf5 {[%clk 0:00:09]} 54. Re4 {[%clk 0:00:12]}  Ra1 {[%clk 0:00:08]} 55. Nd6+ {[%clk 0:00:13]}  Kf6 {[%clk 0:00:08]} 56. Ne8+ {[%clk 0:00:12]}  Kf7 {[%clk 0:00:08]} 57. Nxg7 {[%clk 0:00:12]}  Kxg7 {[%clk 0:00:09]} 58. Kxd4 {[%clk 0:00:11]}  Rg1 {[%clk 0:00:08]} 59. Re3 {[%clk 0:00:11]}  Rg2 {[%clk 0:00:09]} 60. Kc4 {[%clk 0:00:09]}  Rxc2+ {[%clk 0:00:08]} 61. Kxb4 {[%clk 0:00:10]}  Kf6 {[%clk 0:00:09]} 62. Kb5 {[%clk 0:00:10]}  Kf5 {[%clk 0:00:09]} 63. b4 {[%clk 0:00:11]}  Rc8 {[%clk 0:00:08]} 64. Ka6 {[%clk 0:00:09]}  Ra8+ {[%clk 0:00:02]} 65. Kb7 {[%clk 0:00:09]}  Ra1 {[%clk 0:00:02]} 66. b5 {[%clk 0:00:09]}  Rb1 {[%clk 0:00:02]} 67. b6 {[%clk 0:00:09]}  Kg4 {[%clk 0:00:03]} 68. Kc7 {[%clk 0:00:09]}  Rc1+ {[%clk 0:00:02]} 69. Kb8 {[%clk 0:00:09]}  Rb1 {[%clk 0:00:03]} 70. b7 {[%clk 0:00:09]}  Kh3 {[%clk 0:00:03]} 71. Rc3 {[%clk 0:00:05]}  Kg4 {[%clk 0:00:03]} 72. Kc7 {[%clk 0:00:05]}  g5 {[%clk 0:00:04]} 73. hxg5 {[%clk 0:00:05]} 1-0


[Site "https://www.chess.com"]

[Event "Titled Tuesday Blitz February 07 Late 2023"]
[White "Urazayev, Arystanbek"]
[Black "Janaszak, Dawid"]
[WhiteFideId "13709810"]
[BlackFideId "1119206"]
[WhiteElo "2460"]
[BlackElo "2316"]
[Result "0-1"]
[Round "07"]
[TimeControl "180+2"]
[Date "2023.02.07"]
[WhiteClock "0:00:02"]
[BlackClock "0:00:05"]

1. e4 {[%clk 0:03:00]}  e5 {[%clk 0:02:59]} 2. Nf3 {[%clk 0:03:01]}  Nc6 {[%clk 0:02:58]} 3. Bb5 {[%clk 0:03:01]}  a6 {[%clk 0:02:58]} 4. Ba4 {[%clk 0:03:02]}  Nf6 {[%clk 0:02:58]} 5. O-O {[%clk 0:03:02]}  b5 {[%clk 0:02:56]} 6. Bb3 {[%clk 0:03:02]}  Be7 {[%clk 0:02:55]} 7. d3 {[%clk 0:03:02]}  O-O {[%clk 0:02:55]} 8. Nc3 {[%clk 0:02:56]}  d6 {[%clk 0:02:53]} 9. a3 {[%clk 0:02:56]}  Na5 {[%clk 0:02:52]} 10. Ba2 {[%clk 0:02:55]}  c5 {[%clk 0:02:52]} 11. Bg5 {[%clk 0:02:55]}  Bg4 {[%clk 0:02:47]} 12. h3 {[%clk 0:02:50]}  Bh5 {[%clk 0:02:47]} 13. Bxf6 {[%clk 0:02:41]}  Bxf6 {[%clk 0:02:47]} 14. Nd5 {[%clk 0:02:42]}  Nc6 {[%clk 0:02:40]} 15. c3 {[%clk 0:02:38]}  Re8 {[%clk 0:02:29]} 16. b4 {[%clk 0:02:33]}  Be7 {[%clk 0:02:13]} 17. Ne3 {[%clk 0:02:26]}  Bf8 {[%clk 0:02:02]} 18. Nf5 {[%clk 0:02:25]}  cxb4 {[%clk 0:01:43]} 19. axb4 {[%clk 0:02:25]}  Kh8 {[%clk 0:01:31]} 20. Bd5 {[%clk 0:02:18]}  Qb6 {[%clk 0:01:27]} 21. g4 {[%clk 0:02:02]}  Bg6 {[%clk 0:01:26]} 22. Qb3 {[%clk 0:02:03]}  Ra7 {[%clk 0:01:16]} 23. Ng5 {[%clk 0:02:03]}  Nd8 {[%clk 0:01:02]} 24. Kg2 {[%clk 0:01:49]}  h6 {[%clk 0:01:01]} 25. Nf3 {[%clk 0:01:50]}  Ne6 {[%clk 0:01:01]} 26. Qc2 {[%clk 0:01:33]}  a5 {[%clk 0:00:52]} 27. bxa5 {[%clk 0:01:31]}  Rxa5 {[%clk 0:00:53]} 28. Rxa5 {[%clk 0:01:31]}  Qxa5 {[%clk 0:00:54]} 29. Kh2 {[%clk 0:01:28]}  Rc8 {[%clk 0:00:51]} 30. c4 {[%clk 0:01:27]}  b4 {[%clk 0:00:47]} 31. Qb2 {[%clk 0:01:22]}  Rb8 {[%clk 0:00:41]} 32. Ra1 {[%clk 0:01:21]}  Qc5 {[%clk 0:00:39]} 33. Kg3 {[%clk 0:01:02]}  Nf4 {[%clk 0:00:39]} 34. Qb3 {[%clk 0:00:52]}  Ne2+ {[%clk 0:00:36]} 35. Kg2 {[%clk 0:00:53]}  Nf4+ {[%clk 0:00:37]} 36. Kf1 {[%clk 0:00:53]}  Nxh3 {[%clk 0:00:35]} 37. d4 {[%clk 0:00:53]}  exd4 {[%clk 0:00:35]} 38. N3xd4 {[%clk 0:00:54]}  Bxf5 {[%clk 0:00:32]} 39. Qe3 {[%clk 0:00:18]}  Bxg4 {[%clk 0:00:30]} 40. Ra6 {[%clk 0:00:18]}  b3 {[%clk 0:00:29]} 41. Nxb3 {[%clk 0:00:10]}  Rxb3 {[%clk 0:00:27]} 42. Qxc5 {[%clk 0:00:08]}  dxc5 {[%clk 0:00:27]} 43. Bxf7 {[%clk 0:00:09]}  Rb2 {[%clk 0:00:20]} 44. Bd5 {[%clk 0:00:08]}  Rxf2+ {[%clk 0:00:20]} 45. Ke1 {[%clk 0:00:09]}  Bd6 {[%clk 0:00:17]} 46. Rxd6 {[%clk 0:00:08]}  h5 {[%clk 0:00:17]} 47. e5 {[%clk 0:00:04]}  Rf4 {[%clk 0:00:15]} 48. e6 {[%clk 0:00:04]}  Rf5 {[%clk 0:00:11]} 49. Kd2 {[%clk 0:00:02]}  Re5 {[%clk 0:00:11]} 50. Kd3 {[%clk 0:00:02]}  Nf4+ {[%clk 0:00:09]} 51. Kc3 {[%clk 0:00:02]}  Bxe6 {[%clk 0:00:06]} 52. Bb7 {[%clk 0:00:01]}  h4 {[%clk 0:00:05]} 53. Rd8+ {[%clk 0:00:01]}  Kh7 {[%clk 0:00:05]} 54. Rf8 {[%clk 0:00:02]}  g5 {[%clk 0:00:05]} 0-1


[Site "https://www.chess.com"]